fUST/lending_fUST_20250308
["ID","MTS","AMOUNT","RATE_DAILY","PERIOD"]
[355610103,1741368641792,-500.0,0.00041369,120]
[355610104,1741368641801,-1000.0,0.000415,2]
[355610105,1741368641810,-699.59,0.00041643,120]
[355610106,1741368641821,-999.0,0.00041643,120]
[355610107,1741368641830,-2321.86,0.00041643,7]
[355610108,1741368641840,-500.0,0.00041643,120]
[355610109,1741368641850,-699.59,0.00041917,120]
[355610110,1741368641861,-2321.86,0.00041917,7]
[355610111,1741368641871,-500.0,0.00041917,120]
[355610112,1741368641881,-500.0,0.00042,120]
[355610113,1741368641891,-699.59,0.00042191,120]
[355610114,1741368641900,-999.0,0.00042191,120]
[355610115,1741368641910,-2321.86,0.00042191,7]
[355610116,1741368641922,-215.186149,0.00042191,120]
[355610117,1741368641933,-699.59,0.00042465,120]
[355610118,1741368641942,-2321.86,0.00042465,7]
[355610119,1741368641951,-455.96825249,0.00042728,31]
[355610120,1741368641961,-5458.93680607,0.00042729,3]
[355610121,1741368641970,-150.0,0.00042738,30]
[355610122,1741368641980,-699.59,0.00042739,120]
[355610123,1741368641989,-999.0,0.00042739,120]
[355610124,1741368641999,-2321.86,0.00042739,7]
[355610125,1741368642009,-1000.0,0.00043,3]
[355610126,1741368642018,-1000.0,0.00043,2]
[355610127,1741368642027,-416.66666667,0.00043,3]
[355610128,1741368642037,-160.0,0.00043,3]
[355610129,1741368642047,-699.59,0.00043013,120]
[355610130,1741368642056,-2321.86,0.00043013,7]
[355610131,1741368642066,-699.59,0.00043287,120]
[355610132,1741368642075,-999.0,0.00043287,120]
[355610133,1741368642084,-2321.86,0.00043287,7]
[355610134,1741368642093,-699.59,0.00043561,120]
[355610135,1741368642102,-2321.86,0.00043561,7]
[355610136,1741368642112,-153.32,0.000436,36]
[355610137,1741368642121,-160.0,0.00043727,4]
[355610138,1741368642130,-699.59,0.00043835,120]
[355610139,1741368642140,-999.0,0.00043835,120]
[355610140,1741368642150,-2321.86,0.00043835,7]
[355610141,1741368642160,-1000.0,0.00043852,10]
[355610142,1741368642169,-276.89,0.000439,30]
[355610143,1741368642178,-215.5,0.000439,30]
[355610144,1741368642188,-500.0,0.00044,120]
[355610145,1741368642197,-1000.0,0.00044,30]
[355610146,1741368642208,-500.0,0.00044108,7]
[355610147,1741368642218,-150.0,0.00044108,30]
[355610148,1741368642227,-699.59,0.00044109,120]
[355610149,1741368642237,-2321.86,0.00044109,7]
[355610150,1741368642246,-5458.93680607,0.00044132,3]
[355610151,1741368642255,-1000.0,0.00044152,10]
[355610152,1741368642266,-1000.0,0.00044152,10]
[355610153,1741368642275,-1000.0,0.00044152,10]
[355610154,1741368642284,-1000.0,0.00044152,2]
[355610155,1741368642293,-500.0,0.0004428,10]
[355610156,1741368642303,-500.0,0.0004428,10]
[355610157,1741368642311,-477.32668706,0.0004428,10]
[355610158,1741368642320,-500.0,0.00044317,10]
[355610159,1741368642329,-500.0,0.00044317,10]
[355610160,1741368642338,-500.0,0.00044317,10]
[355610161,1741368642348,-500.0,0.00044317,10]
[355610162,1741368642357,-699.59,0.00044383,120]
[355610163,1741368642366,-999.0,0.00044383,120]
[355610164,1741368642375,-2321.86,0.00044383,7]
[355610165,1741368642384,-699.62,0.00044657,120]
[355610166,1741368642393,-2322.0756,0.00044657,7]
[355610167,1741368642402,-999.0,0.00044931,120]
[355610168,1741368642411,-10917.8736121,0.0004499,3]
[355610169,1741368642420,-77430.85852307,0.00045,60]
[355610170,1741368642429,-500.0,0.00045,120]
[355610171,1741368642439,-1000.0,0.00045,120]
[355610172,1741368642447,-238.96,0.00045,120]
[355610173,1741368642457,-1000.0,0.00045,90]
[355610174,1741368642466,-320.0833592,0.00045253,95]
[355610175,1741368642475,-898.81214427,0.00045463,28]
[355610176,1741368642484,-236.3,0.00045478,30]
[355610177,1741368642494,-999.0,0.00045479,120]
[355610178,1741368642503,-500.0,0.00046,120]
[355610179,1741368642513,-528.41927568,0.00046,120]
[355610180,1741368642522,-1000.0,0.00046,120]
[355610181,1741368642531,-999.0,0.00046027,120]
[355610182,1741368642540,-1000.0,0.000465,120]
[355610183,1741368642549,-999.0,0.00046575,120]
[355610184,1741368642558,-700.0,0.00046749,120]
[355610185,1741368642566,-160.0,0.00046765,5]
[355610186,1741368642575,-209.62712669,0.00047,120]
[355610187,1741368642584,-700.0,0.00047023,120]
[355610188,1741368642594,-999.0,0.00047123,120]
[355610189,1741368642603,-700.0,0.00047297,120]
[355610190,1741368642611,-1000.0,0.000475,120]
[355610191,1741368642620,-200.0,0.00047539,120]
[355610192,1741368642629,-700.0,0.00047571,120]
[355610193,1741368642639,-564.24665501,0.00047671,120]
[355610194,1741368642648,-700.0,0.00047845,120]
[355610195,1741368642657,-151.0,0.0004786,2]
[355610196,1741368642667,-5458.93680607,0.00047869,4]
[355610197,1741368642677,-21835.7472243,0.00047879,4]
[355610198,1741368642687,-222000.0,0.00047889,2]
[355610199,1741368642696,-2626.99945201,0.000479,40]
[355610200,1741368642705,-271.93265232,0.000479,40]
[355610201,1741368642715,-276.89,0.000479,30]
[355610202,1741368642724,-215.5,0.000479,30]
[355610203,1741368642733,-148083.86650753,0.000479,120]
[355610204,1741368642742,-5458.93680607,0.00047935,4]
[355610205,1741368642751,-888.0,0.00047945,30]
[355610206,1741368642761,-888.0,0.00047945,30]
[355610207,1741368642770,-888.0,0.00047945,30]
[355610208,1741368642779,-888.0,0.00047945,30]
[355610209,1741368642787,-888.0,0.00047945,30]
[355610210,1741368642797,-888.0,0.00047945,30]
[355610211,1741368642806,-888.0,0.00047945,30]
[355610212,1741368642815,-888.0,0.00047945,30]
[355610213,1741368642823,-888.0,0.00047945,30]
[355610214,1741368642832,-888.0,0.00047945,30]
[355610215,1741368642842,-888.0,0.00047945,30]
[355610216,1741368642851,-888.0,0.00047945,30]
[355610217,1741368642860,-888.0,0.00047945,30]
[355610218,1741368642869,-556.25034647,0.00047945,30]
[355610219,1741368642878,-500.0,0.00047973,10]
[355610220,1741368642887,-1000.0,0.00048,120]
[355610221,1741368642896,-1000.0,0.00048,120]
[355610222,1741368642905,-3795.57648265,0.00048,3]
[355610223,1741368642914,-2901.27623689,0.00048,120]
[355610225,1741368642923,-6044.07318966,0.00048,30]
[355610227,1741368642933,-493303.79904724,0.00048,120]
[355610229,1741368642942,-1100.65190619,0.00048,120]
[355610230,1741368642951,-29292.11480278,0.00048,120]
[355610231,1741368642960,-163.155519,0.00048,120]
[355610232,1741368642969,-151.0,0.00048,120]
[355610233,1741368642978,-151.0,0.00048,120]
[355610234,1741368642988,-547.5601787,0.00048136,93]
[355610235,1741368642997,-547.5601787,0.00048236,90]
[355610237,1741368643008,-547.5601787,0.00048336,98]
[355610239,1741368643018,-10917.8736121,0.00048388,4]
[355610241,1741368643028,-700.0,0.00048393,120]
[355610243,1741368643037,-14887.5564513,0.00048398,120]
[355610244,1741368643054,-8685.0,0.00048398,120]
[355610252,1741368643096,-507.66132169,0.00038628,30]
[355610255,1741368643105,-500.0,0.00038673,5]
[355610257,1741368643115,-1000.0,0.00044152,10]
[355610258,1741368643124,-184.0,0.00048,90]
[355610260,1741368643133,-2184.94733891,0.00048398,120]
[355610272,1741368643410,-19.67817685,0.00038673,5]
[355610279,1741368643500,-480.32182315,0.00038673,5]
[355610280,1741368643511,-4657.17817685,0.00044122,10]
[355610281,1741368643522,-1597.24913736,0.00044122,10]
[355610282,1741368643533,-2712.5024788,0.00044122,10]
[355610297,1741368646476,-261.783,0.00044122,10]
[355610345,1741369832897,-500.000001,0.00031,10]
[355610346,1741369832907,-500.0,0.0003589,2]
[355610347,1741369832916,-153.31,0.00038,31]
[355610348,1741369832925,-153.31,0.00038,31]
[355610349,1741369832935,-153.31,0.00038,31]
[355610350,1741369832944,-503.24033461,0.00038356,30]
[355610351,1741369832953,-198.1263854,0.00039352,2]
[355610352,1741369832962,-416.66666667,0.00039843,2]
[355610353,1741369832971,-638.59690838,0.00039899,119]
[355610354,1741369832980,-1606.0,0.0004,2]
[355610355,1741369832989,-150.0,0.00040446,2]
[355610356,1741369832998,-1953.0,0.00040446,2]
[355610357,1741369833007,-540.0,0.00040446,2]
[355610358,1741369833016,-1291.71436502,0.00040446,2]
[355610429,1741369838508,-150.0,0.00038346,2]
[355610431,1741369838518,-983.28563498,0.00040446,2]
[355610433,1741369838528,-153.31,0.000408,31]
[355610434,1741369838537,-40.22178147,0.000408,31]
[355610441,1741369840949,-113.08821853,0.000408,31]
[355610442,1741369840960,-153.31,0.000408,31]
[355610443,1741369840970,-153.31,0.000408,31]
[355610444,1741369840979,-153.31,0.000408,31]
[355610445,1741369840988,-153.31,0.000408,31]
[355610446,1741369840997,-500.0,0.00041015,2]
[355610447,1741369841007,-500.0,0.00041095,7]
[355610448,1741369841016,-286.01543,0.00041171,2]
[355610449,1741369841026,-500.0,0.00041211,2]
[355610450,1741369841035,-500.0,0.00041517,3]
[355610451,1741369841045,-500.0,0.00041643,7]
[355610452,1741369841056,-500.0,0.0004175,10]
[355610453,1741369841067,-500.0,0.0004175,10]
[355610454,1741369841078,-500.0,0.0004214,10]
[355610455,1741369841087,-500.0,0.0004214,2]
[355610456,1741369841097,-500.0,0.0004214,10]
[355610457,1741369841107,-500.0,0.00042191,7]
[355610458,1741369841117,-321.99,0.00042739,7]
[355610459,1741369841127,-153.31,0.000436,36]
[355610460,1741369841137,-153.31,0.000436,36]
[355610461,1741369841149,-153.31,0.000436,36]
[355610462,1741369841159,-153.31,0.000436,36]
[355610463,1741369841169,-153.31,0.000436,36]
[355610464,1741369841178,-153.31,0.000436,36]
[355610465,1741369841188,-646.6929635,0.00043901,19]
[355610466,1741369841198,-500.0,0.00043973,10]
[355610467,1741369841207,-304.49136305,0.00043999,2]
[355610468,1741369841219,-9694.50863695,0.00043999,2]
[355610469,1741369841228,-500.0,0.00043999,7]
[355610470,1741369841239,-1000.0,0.00044,2]
[355610471,1741369841248,-152.48,0.00044122,120]
[355610472,1741369841258,-9999.0,0.00044273,2]
[355610473,1741369841267,-500.0,0.00044273,7]
[355610474,1741369841276,-9999.0,0.00044547,2]
[355610475,1741369841286,-512.08,0.00044547,7]
[355610476,1741369841296,-500.0,0.00044678,120]
[355610477,1741369841308,-9999.0,0.00044821,2]
[355610478,1741369841317,-500.0,0.00044952,120]
[355610479,1741369841327,-1000.0,0.00045,30]
[355610480,1741369841336,-10004.0,0.00045095,2]
[355610481,1741369841346,-500.0,0.00045226,120]
[355610482,1741369841355,-500.0,0.000455,120]
[355610483,1741369841365,-500.0,0.00045774,120]
[355610484,1741369841375,-1000.0,0.00046,120]
[355610485,1741369841385,-500.0,0.00046048,120]
[355610486,1741369841394,-500.0,0.00046322,120]
[355610487,1741369841404,-153.31,0.000464,42]
[355610488,1741369841413,-153.31,0.000464,42]
[355610489,1741369841423,-153.31,0.000464,42]
[355610490,1741369841432,-153.31,0.000464,42]
[355610491,1741369841442,-153.31,0.000464,42]
[355610492,1741369841451,-153.31,0.000464,42]
[355610493,1741369841461,-500.0,0.00046532,2]
[355610494,1741369841470,-500.0,0.0004655,10]
[355610495,1741369841479,-500.0,0.00046596,120]
[355610496,1741369841489,-619.68585959,0.00046748,98]
[355610497,1741369841498,-500.0,0.00046749,120]
[355610498,1741369841507,-619.68585959,0.00046848,100]
[355610499,1741369841517,-500.0,0.0004687,120]
[355610500,1741369841527,-619.68585959,0.00046948,98]
[355610501,1741369841536,-1000.0,0.00047,120]
[355610502,1741369841545,-150.0,0.00047013,14]
[355610503,1741369841555,-500.0,0.00047023,120]
[355610504,1741369841567,-619.68585959,0.00047048,97]
[355610505,1741369841576,-150.0,0.00047099,14]
[355610506,1741369841586,-284.74198157,0.00047099,14]
[355610507,1741369841597,-500.0,0.00047144,120]
[355610508,1741369841607,-619.68585959,0.00047148,97]
[355610509,1741369841616,-1000.0,0.00047229,10]
[355610510,1741369841626,-1000.0,0.00047229,10]
[355610511,1741369841635,-619.68585959,0.00047248,100]
[355610512,1741369841645,-500.0,0.0004725,10]
[355610513,1741369841654,-171.95578894,0.0004725,10]
[355610514,1741369841674,-328.04421106,0.0004725,10]
[355610515,1741369841683,-502.1537612,0.0004725,10]
[355610516,1741369841692,-500.0,0.00047297,120]
[355610517,1741369841702,-619.68585959,0.00047348,96]
[355610518,1741369841711,-638.59690836,0.00047399,120]
[355610519,1741369841720,-500.0,0.00047418,120]
[355610520,1741369841729,-619.68585959,0.00047448,93]
[355610521,1741369841738,-754.31,0.0004749,30]
[355610522,1741369841748,-1000.0,0.000475,120]
[355610523,1741369841757,-1000.0,0.000475,120]
[355610524,1741369841766,-150.0,0.00047528,14]
[355610525,1741369841775,-150.0,0.00047528,14]
[355610526,1741369841785,-2128.90079842,0.00047528,4]
[355610527,1741369841794,-619.68585959,0.00047548,91]
[355610528,1741369841803,-500.0,0.00047571,120]
[355610529,1741369841815,-10167.09,0.00047609,10]
[355610530,1741369841824,-1000.0,0.00047619,10]
[355610531,1741369841833,-1000.0,0.00047619,2]
[355610532,1741369841842,-1000.0,0.00047619,10]
[355610533,1741369841853,-619.68585959,0.00047648,95]
[355610534,1741369841862,-500.0,0.00047672,2]
[355610535,1741369841872,-500.0,0.00047672,2]
[355610536,1741369841881,-500.0,0.00047672,2]
[355610537,1741369841890,-541.2466204,0.00047672,2]
[355610538,1741369841900,-500.0,0.00047673,10]
[355610539,1741369841909,-500.0,0.00047692,120]
[355610540,1741369841919,-619.68585959,0.00047748,91]
[355610541,1741369841928,-200.0,0.00047793,120]
[355610542,1741369841937,-4143.16678796,0.0004781,120]
[355610543,1741369841947,-500.0,0.00047845,120]
[355610544,1741369841960,-619.68585959,0.00047848,94]
[355610545,1741369841970,-3000.0,0.000479,2]
[355610546,1741369841979,-619.68585959,0.00047948,93]
[355610547,1741369841988,-500.0,0.00047966,120]
[355610548,1741369841998,-1000.0,0.00048,120]
[355610549,1741369842007,-1000.0,0.00048,120]
[355610550,1741369842016,-725.10838246,0.00048,3]
[355610551,1741369842025,-172.0,0.00048,90]
[355610552,1741369842035,-4218.86132516,0.00048,120]
[355610553,1741369842044,-200.0,0.00048044,120]
[355610554,1741369842054,-619.68585959,0.00048048,96]
[355610555,1741369842066,-1622.43,0.00048056,30]
[355610556,1741369842079,-500.0,0.00048119,120]
[355610557,1741369842089,-619.68585959,0.00048148,95]
[355610558,1741369842100,-3000.0,0.000482,120]
[355610559,1741369842109,-500.0,0.0004824,120]
[355610560,1741369842118,-619.68585959,0.00048248,92]
[355610561,1741369842128,-1346.02603186,0.00048248,2]
[355610562,1741369842137,-999.0,0.00048277,120]
[355610563,1741369842149,-10644.5039921,0.00048288,4]
[355610564,1741369842158,-222000.0,0.00048298,2]
[355610565,1741369842168,-619.68585959,0.00048348,98]
[355610566,1741369842178,-500.0,0.00048373,10]
[355610567,1741369842187,-4257.80159684,0.00048388,4]
[355610568,1741369842197,-40702.08944048,0.00048398,120]
[355610590,1741369843545,-393.55317783,0.00047609,10]
[355610603,1741369843653,-8079.01682217,0.00047609,10]
[355610605,1741369843663,-35756.54786823,0.00048398,120]
[355610730,1741370931611,5000.0,0.00028,10]
[355610784,1741371035536,-203.38747373,0.00018922,3]
[355610785,1741371035547,-700.0,0.00019022,2]
[355610786,1741371035556,-900.0,0.00019022,2]
[355610787,1741371035564,-3795.5764836,0.0003,3]
[355610788,1741371035573,-500.0,0.00031,10]
[355610789,1741371035583,-546.57064144,0.00031,10]
[355610790,1741371035592,-500.0,0.00031,10]
[355610791,1741371035602,-500.0,0.0003589,2]
[355610792,1741371035611,-383.15814504,0.000362,98]
[355610793,1741371035621,-755.91932265,0.00037413,2]
[355610794,1741371035630,-383.15814501,0.000379,108]
[355610795,1741371035640,-244.738439,0.00039378,2]
[355610796,1741371035650,-500.0,0.00040439,2]
[355610797,1741371035660,-500.0,0.00041211,2]
[355610798,1741371035669,-372.0,0.00042,120]
[355610799,1741371035678,-500.0,0.000439,120]
[355610800,1741371035688,-151.0,0.00044,26]
[355610801,1741371035698,-372.0,0.00044,120]
[355610802,1741371035707,-500.0,0.00044174,120]
[355610803,1741371035725,-500.0,0.00044448,120]
[355610805,1741371035736,-500.0,0.00044722,120]
[355610807,1741371035746,-383.15814501,0.000449,120]
[355610808,1741371035756,-1000.0,0.00044972,7]
[355610809,1741371035765,-500.0,0.00044973,10]
[355610811,1741371035774,-500.0,0.00044973,10]
[355610813,1741371035784,-500.0,0.00044973,10]
[355610814,1741371035793,-500.0,0.00044973,2]
[355610816,1741371035803,-500.0,0.00044973,10]
[355610818,1741371035813,-500.0,0.00044996,120]
[355610819,1741371035822,-500.0,0.00044999,120]
[355610820,1741371035832,-500.0,0.00044999,7]
[355610821,1741371035844,-500.0,0.00044999,7]
[355610822,1741371035853,-500.0,0.00044999,120]
[355610823,1741371035863,-50000.0,0.00045,120]
[355610824,1741371035872,-396.364765,0.00045,120]
[355610825,1741371035882,-151.0,0.00045,27]
[355610826,1741371035892,-907.58126486,0.00045246,7]
[355610827,1741371035902,-500.0,0.0004527,120]
[355610828,1741371035912,-500.0,0.00045273,120]
[355610829,1741371035921,-500.0,0.00045273,7]
[355610830,1741371035931,-500.0,0.00045273,120]
[355610831,1741371035941,-500.0,0.00045544,120]
[355610832,1741371035951,-500.0,0.00045547,120]
[355610833,1741371035961,-500.0,0.00045547,7]
[355610834,1741371035971,-465.97,0.00045547,7]
[355610835,1741371035980,-500.0,0.00045547,120]
[355610836,1741371035990,-500.0,0.00045818,120]
[355610837,1741371035999,-500.0,0.00045821,120]
[355610838,1741371036009,-500.0,0.00045821,7]
[355610839,1741371036019,-500.0,0.00045821,120]
[355610840,1741371036029,-372.0,0.00046,120]
[355610841,1741371036043,-302.0,0.00046,55]
[355610842,1741371036055,-500.0,0.00046092,120]
[355610843,1741371036065,-500.0,0.00046095,120]
[355610844,1741371036074,-268.12,0.00046095,7]
[355610845,1741371036083,-500.0,0.00046095,120]
[355610846,1741371036093,-500.0,0.00046366,120]
[355610847,1741371036103,-456.10534707,0.00046369,120]
[355610848,1741371036112,-500.0,0.00046369,120]
[355610849,1741371036122,-500.0,0.00046532,2]
[355610850,1741371036131,-500.0,0.00046643,120]
[355610851,1741371036140,-416.66666667,0.00046703,2]
[355610852,1741371036150,-800.0,0.00046749,120]
[355610853,1741371036160,-1346.02603186,0.000469,2]
[355610854,1741371036170,-500.0,0.00046917,120]
[355610855,1741371036180,-2915.02152087,0.00046963,4]
[355610856,1741371036191,-7060.48,0.00046963,10]
[355610857,1741371036202,-500.0,0.00046973,10]
[355610858,1741371036213,-500.0,0.00046973,10]
[355610859,1741371036222,-500.0,0.00046973,10]
[355610860,1741371036233,-500.0,0.00046973,10]
[355610861,1741371036242,-500.0,0.00046973,10]
[355610862,1741371036252,-500.0,0.00046973,10]
[355610863,1741371036262,-226.80518004,0.00046989,2]
[355610864,1741371036272,-55385.4088965,0.0004699,4]
[355610865,1741371036281,-319.17777674,0.00046999,120]
[355610866,1741371036291,-380.93290621,0.00046999,31]
[355610867,1741371036301,-999.0,0.00046999,120]
[355610868,1741371036311,-2626.99945201,0.00047,40]
[355610869,1741371036320,-271.93265232,0.00047,40]
[355610870,1741371036330,-16717.00536411,0.00047,2]
[355610871,1741371036351,-18116.21210389,0.00047,2]
[355610888,1741371037754,-1080638.22772669,0.00047,2]
[355610889,1741371037767,-10921.03933265,0.00047,2]
[355610930,1741371042315,-430.61164802,0.00046973,10]
[355610942,1741371042934,-72.42191631,0.00046973,10]
[355610943,1741371042944,-8694.40569946,0.00047,2]
[355611105,1741372232303,-1368.59936879,0.00019205,5]
[355611113,1741372237973,-637.2747773,0.00019205,5]
[355611114,1741372237983,-4662.30028739,0.00021,5]
[355611115,1741372237993,-300.0,0.00027989,2]
[355611116,1741372238003,-1326.81741645,0.0002799,2]
[355611117,1741372238013,-420.0,0.00030228,2]
[355611118,1741372238023,-500.0,0.00031,10]
[355611119,1741372238034,-587.0,0.00032647,2]
[355611120,1741372238043,-160.0,0.00034417,2]
[355611121,1741372238053,-823.0,0.00035259,2]
[355611122,1741372238062,-500.0,0.0003589,2]
[355611123,1741372238071,-153.47,0.00038,31]
[355611124,1741372238081,-1152.0,0.0003808,2]
[355611125,1741372238090,-153.47,0.000408,31]
[355611126,1741372238100,-153.47,0.000408,31]
[355611127,1741372238110,-1613.0,0.00041127,5]
[355611128,1741372238119,-500.0,0.00041211,2]
[355611129,1741372238129,-160.0,0.00041701,3]
[355611130,1741372238138,-244.738439,0.00042773,2]
[355611131,1741372238148,-4256.6057069,0.00042794,120]
[355611132,1741372238158,-723.2384062,0.0004336,30]
[355611133,1741372238167,-9999.0,0.00043369,2]
[355611134,1741372238177,-1951.0,0.0004337,2]
[355611135,1741372238186,-540.0,0.0004337,2]
[355611136,1741372238195,-2275.0,0.0004337,2]
[355611137,1741372238204,-153.47,0.000436,36]
[355611138,1741372238214,-153.47,0.000436,36]
[355611139,1741372238223,-5153.0075376,0.00043643,2]
[355611140,1741372238232,-500.0,0.00043733,10]
[355611141,1741372238241,-500.0,0.00043733,2]
[355611142,1741372238251,-500.0,0.00043733,10]
[355611143,1741372238261,-416.66666667,0.00044179,2]
[355611144,1741372238270,-2258.0,0.00044418,5]
[355611145,1741372238279,-1533.47,0.00044425,8]
[355611146,1741372238289,-986.2718808,0.0004459,28]
[355611147,1741372238299,-160.48,0.0004469,30]
[355611148,1741372238308,-500.0,0.00044713,10]
[355611149,1741372238320,-502.02009408,0.00044999,2]
[355611150,1741372238331,-151.0,0.00045,90]
[355611151,1741372238350,-1000.0,0.00045,30]
[355611152,1741372238362,-500.0,0.00045033,10]
[355611153,1741372238372,-500.0,0.00045033,10]
[355611154,1741372238382,-500.0,0.00045033,10]
[355611155,1741372238392,-2237.23,0.00045213,8]
[355611156,1741372238402,-500.0,0.00045519,120]
[355611157,1741372238413,-600.0,0.00045652,120]
[355611158,1741372238423,-500.0,0.00045652,7]
[355611159,1741372238433,-1100.0,0.00045653,120]
[355611160,1741372238443,-151.0,0.00045685,90]
[355611161,1741372238452,-160.0,0.00045752,4]
[355611162,1741372238462,-500.0,0.00045793,120]
[355611163,1741372238472,-658.4386699,0.00045881,2]
[355611164,1741372238482,-7316.07742836,0.000459,120]
[355611165,1741372238491,-600.52254181,0.000459,3]
[355611166,1741372238500,-384.03,0.00045901,8]
[355611167,1741372238510,-500.0,0.00045926,7]
[355611168,1741372238520,-1100.0,0.00045927,120]
[355611169,1741372238529,-2000.0,0.00046,30]
[355611170,1741372238539,-500.0,0.00046067,120]
[355611171,1741372238550,-1000.0,0.000462,120]
[355611172,1741372238560,-512.08,0.000462,7]
[355611173,1741372238570,-1100.0,0.00046201,120]
[355611174,1741372238580,-500.0,0.00046341,120]
[355611175,1741372238590,-153.47,0.000464,42]
[355611176,1741372238600,-153.47,0.000464,42]
[355611177,1741372238610,-575.8153077,0.00046463,30]
[355611178,1741372238620,-505.70234447,0.00046474,120]
[355611179,1741372238630,-500.0,0.00046474,7]
[355611180,1741372238639,-500.0,0.00046474,120]
[355611181,1741372238649,-1100.0,0.00046475,120]
[355611182,1741372238659,-500.0,0.00046532,2]
[355611183,1741372238668,-500.0,0.00046615,120]
[355611184,1741372238679,-199.00000001,0.000467,120]
[355611185,1741372238689,-557.06854433,0.00046738,100]
[355611186,1741372238699,-500.0,0.00046748,120]
[355611187,1741372238708,-1100.0,0.00046749,120]
[355611188,1741372238718,-10000.0,0.00046801,120]
[355611189,1741372238727,-557.06854433,0.00046838,96]
[355611190,1741372238737,-500.0,0.00046873,10]
[355611191,1741372238747,-500.0,0.00046873,10]
[355611192,1741372238757,-500.0,0.00046873,10]
[355611193,1741372238767,-500.0,0.00046873,10]
[355611194,1741372238776,-500.0,0.00046889,120]
[355611195,1741372238786,-5883.73,0.0004689,10]
[355611196,1741372238796,-4903.11,0.0004689,10]
[355611197,1741372238806,-235.87606672,0.00046899,2]
[355611198,1741372238816,-266.65303434,0.00046899,31]
[355611199,1741372238826,-223.42444372,0.00046899,120]
[355611200,1741372238836,-500.0,0.00046899,2]
[355611201,1741372238846,-500.0,0.00046899,2]
[355611202,1741372238855,-500.0,0.00046899,2]
[355611203,1741372238867,-500.0,0.00046899,2]
[355611204,1741372238879,-500.0,0.00046899,2]
[355611205,1741372238889,-500.0,0.00046899,2]
[355611206,1741372238899,-500.0,0.00046899,2]
[355611207,1741372238910,-500.0,0.00046899,2]
[355611208,1741372238920,-190.59059096,0.00046899,2]
[355611209,1741372238930,-500.0,0.00046899,2]
[355611210,1741372238940,-500.0,0.00046899,2]
[355611211,1741372238949,-2438.47727238,0.000469,7]
[355611212,1741372238960,-222000.0,0.000469,2]
[355611213,1741372238970,-320.0833592,0.00046928,106]
[355611214,1741372238980,-557.06854433,0.00046938,94]
[355611215,1741372238990,-1421.29140936,0.0004697,2]
[355611216,1741372239000,-151.0,0.00046972,2]
[355611217,1741372239010,-500.0,0.00046972,2]
[355611218,1741372239020,-518.5,0.00046972,2]
[355611219,1741372239030,-537.6845,0.00046972,2]
[355611220,1741372239039,-557.5788265,0.00046972,2]
[355611221,1741372239050,-578.20924308,0.00046972,2]
[355611222,1741372239060,-599.60298507,0.00046972,2]
[355611223,1741372239079,-1073.36849535,0.00046972,2]
[355611224,1741372239092,-500.0,0.00046973,3]
[355611225,1741372239107,-159.58273539,0.00046973,2]
[355611226,1741372239123,-500.0,0.00046973,10]
[355611227,1741372239136,-500.0,0.00046973,10]
[355611228,1741372239148,-500.0,0.00046973,10]